fUSD/lending_fUSD_20250119
["ID","MTS","AMOUNT","RATE_DAILY","PERIOD"]
[349517631,1737270448330,-300.0,0.00010985,2]
[349517632,1737270448350,-200.0,0.00010986,2]
[349517633,1737270448372,-10520.11,0.00010986,2]
[349517634,1737270448393,-241.13,0.00010999,2]
[349517635,1737270448414,-2076.0,0.00011047,2]
[349517636,1737270448434,-500.0,0.00011151,2]
[349517637,1737270448456,-9458.95026005,0.000113,2]
[349517638,1737270554096,-243.69,0.00010742,2]
[349517639,1737270554117,-202.79539233,0.00010742,2]
[349517655,1737270631922,-38.33460767,0.00010742,2]
[349517656,1737270631931,-211.8060656,0.00011292,2]
[349517657,1737270632079,-766.16205605,0.00011292,2]
[349517658,1737270632089,-7132.24573995,0.000113,2]
[349517659,1737270632098,-1439.3206,0.000113,2]
[349517660,1737270632108,-2500.0,0.00011367,2]
[349517661,1737270632118,-1810.60756344,0.00011393,2]
[349517662,1737270632127,-150.0,0.00011399,2]
[349517663,1737270632136,-41658.55224063,0.000114,2]
[349517664,1737270632147,-15535.0,0.000114,2]
[349517665,1737270632159,-6290.0000001,0.000114,2]
[349517666,1737270632170,-5880.0,0.000114,2]
[349517667,1737270632181,-675.0,0.000114,2]
[349517668,1737270632284,-39478.51505927,0.000114,2]
[349517670,1737270632293,-5000.0,0.000114,2]
[349517672,1737270632303,-1000.0,0.000114,2]
[349517674,1737270632312,-10492.91605965,0.000114,2]
[349517675,1737270632322,-327.92596273,0.000114,2]
[349517676,1737270632331,-807.2496709,0.000114,2]
[349517677,1737270632342,-1810.6075634,0.00011405,2]
[349517678,1737270632354,-1030.78749437,0.00011409,2]
[349517679,1737270632363,-10492.91605963,0.00011411,2]
[349517680,1737270632372,-1810.6075634,0.00011417,2]
[349517681,1737270632381,-10492.91605963,0.00011422,2]
[349517682,1737270632391,-1810.6075634,0.00011429,2]
[349517683,1737270632400,-500.0,0.00011432,2]
[349517684,1737270632410,-500.0,0.00011432,2]
[349517686,1737270632419,-503.81658871,0.00011432,2]
[349517688,1737270632429,-500.0,0.00011432,2]
[349517690,1737270632438,-502.75653172,0.00011432,2]
[349517692,1737270632447,-500.0,0.00011432,2]
[349517694,1737270632457,-183.95555617,0.00011432,2]
[349517696,1737270632466,-480.33109551,0.00011432,2]
[349517698,1737270632475,-10492.91605963,0.00011433,2]
[349517700,1737270632484,-1810.6075634,0.00011441,2]
[349517702,1737270632494,-879.06,0.00011443,2]
[349517703,1737270632503,-10492.91605963,0.00011444,2]
[349517704,1737270632512,-1810.6075634,0.00011452,2]
[349517705,1737270632521,-10492.91605963,0.00011456,2]
[349517706,1737270632530,-1810.6075634,0.00011464,2]
[349517707,1737270632539,-10492.91605963,0.00011467,2]
[349517708,1737270632548,-500.0,0.00011473,2]
[349517709,1737270632557,-1810.6075634,0.00011476,2]
[349517710,1737270632566,-10492.91605963,0.00011478,2]
[349517711,1737270632575,-802.0,0.00011479,2]
[349517712,1737270632584,-23601.0,0.00011479,2]
[349517713,1737270632593,-1810.6075634,0.00011488,2]
[349517714,1737270632602,-10492.91605963,0.00011489,2]
[349517715,1737270632611,-179.438524,0.0001149,2]
[349517716,1737270632620,-179.438524,0.0001149,2]
[349517717,1737270632629,-301.50478601,0.00011493,2]
[349517718,1737270632639,-297.96,0.00011495,2]
[349517719,1737270632648,-297.96,0.00011495,2]
[349517720,1737270632658,-297.96,0.00011495,2]
[349517721,1737270632667,-297.96,0.00011495,2]
[349517722,1737270632678,-297.96,0.00011495,2]
[349517723,1737270632687,-297.96,0.00011495,2]
[349517724,1737270632696,-297.96,0.00011495,2]
[349517725,1737270632705,-297.96,0.00011495,2]
[349517726,1737270632714,-297.96,0.00011495,2]
[349517727,1737270632723,-297.96,0.00011495,2]
[349517728,1737270632731,-297.96,0.00011495,2]
[349517729,1737270632880,-297.96,0.00011495,2]
[349517730,1737270632890,-297.96,0.00011495,2]
[349517731,1737270632900,-297.96,0.00011495,2]
[349517732,1737270632910,-297.96,0.00011495,2]
[349517733,1737270632920,-297.96,0.00011495,2]
[349517734,1737270632929,-297.96,0.00011495,2]
[349517735,1737270632939,-297.96,0.00011495,2]
[349517736,1737270632948,-297.96,0.00011495,2]
[349517737,1737270632958,-297.96,0.00011495,2]
[349517738,1737270632967,-297.96,0.00011495,2]
[349517739,1737270632976,-500.0,0.00011499,2]
[349517740,1737270632987,-1000.0,0.00011499,2]
[349517741,1737270632997,-208.75398412,0.00011499,2]
[349517742,1737270633007,-3262329.8800951,0.000115,2]
[349517743,1737270633078,-500.0,0.00011432,2]
[349517744,1737270633088,-97900.00000162,0.000115,2]
[349517745,1737270633099,-1905.18999971,0.000115,2]
[349517746,1737270633111,-21641.16440528,0.000115,2]
[349517762,1737270637914,-2840.76234387,0.000115,2]
[349517763,1737270637926,-528.00389699,0.000115,2]
[349517764,1737270637979,-28295.8872456,0.000115,2]
[349517765,1737270638049,-95876.580086,0.000115,2]
[349517797,1737270639978,-21086.43120001,0.000115,2]
[349517798,1737270639990,-1515.62931378,0.000115,2]
[349517799,1737270640009,-1035.12557898,0.000115,2]
[349517810,1737270642920,-6280.76921692,0.000114,2]
[349517811,1737270643036,-3120.93147266,0.000114,2]
[349517812,1737270643045,-397061.34825476,0.000115,2]
[349518105,1737270646208,-508.98818188,0.000115,2]
[349518107,1737270646220,-3161.9985853,0.000115,2]
[349518109,1737270646231,-313556.70360197,0.000115,2]
[349518380,1737270949735,-300.0,0.00011399,2]
[349518381,1737270949755,-545.0,0.000114,2]
[349518382,1737271065350,-300.0,8.903e-05,2]
[349518385,1737271394661,-212.25,8.903e-05,2]
[349518408,1737271759153,-170.68,0.00010137,2]
[349518409,1737271759175,-3278.9837,0.00010556,2]
[349518412,1737271822933,-1037.10875048,0.00011999,3]
[349518413,1737271822954,-1037.10875048,0.00011999,3]
[349518416,1737271832027,-325.0,0.00010556,2]
[349518417,1737271832038,-276.9999995,0.00010556,2]
[349518418,1737271832067,-942.8163005,0.00010556,2]
[349518419,1737271832076,-562.89,0.00010608,2]
[349518421,1737271832087,-250.0,0.0001063,2]
[349518423,1737271832096,-171.43,0.0001063,2]
[349518425,1737271832105,-305.96,0.00010652,2]
[349518427,1737271832114,-1000.0,0.00010733,2]
[349518429,1737271832123,-250.0,0.00010811,2]
[349518430,1737271832132,-250.0,0.00010839,2]
[349518431,1737271832142,-500.0,0.00010877,2]
[349518432,1737271832150,-175.29,0.00011044,2]
[349518433,1737271832159,-772.46,0.000111,2]
[349518434,1737271832169,-82.6536995,0.00011167,2]
[349518435,1737271832180,-429.5963005,0.00011167,2]
[349518436,1737271832189,-375.86410034,0.00011171,2]
[349518437,1737271832199,-300.0,0.00011199,2]
[349518438,1737271832208,-438.08,0.000112,2]
[349518439,1737271832217,-1543.88,0.000112,2]
[349518440,1737271832226,-150.0,0.00011399,2]
[349518441,1737271832235,-160.13,0.000114,2]
[349518442,1737271832244,-1827.7576,0.000114,2]
[349518443,1737271832254,-1286.7522,0.000114,2]
[349518444,1737271832263,-500.0,0.000114,2]
[349518445,1737271832272,-1663.1896,0.000114,2]
[349518446,1737271832281,-7300.8301,0.000114,2]
[349518447,1737271832291,-619.265,0.000114,2]
[349518448,1737271832395,-1601.6522,0.000114,2]
[349518449,1737271832405,-6575.5289,0.000114,2]
[349518450,1737271832415,-217.6129,0.000114,2]
[349518451,1737271832424,-265.8519,0.000114,2]
[349518452,1737271832435,-606.0332,0.000114,2]
[349518453,1737271832445,-308.86224481,0.000114,2]
[349518454,1737271832454,-4067.9972,0.000114,2]
[349518455,1737271832463,-2323.24948276,0.000114,2]
[349518456,1737271832473,-1151.4744465,0.000114,2]
[349518457,1737271832482,-3955.613,0.000114,2]
[349518458,1737271832492,-4457.7342137,0.000114,2]
[349518459,1737271832516,-595.94999995,0.000114,2]
[349518460,1737271832723,-831.35999967,0.000114,2]
[349518461,1737271832735,-1362.72798668,0.000114,2]
[349518462,1737271832744,-5328.65926552,0.000114,2]
[349518463,1737271832760,-324.94623448,0.000114,2]
[349518464,1737271832770,-453.9646,0.000114,2]
[349518465,1737271832780,-2500.0,0.000114,2]
[349518466,1737271832789,-1739.52910566,0.00011436,2]
[349518467,1737271832799,-2323.24948267,0.00011456,2]
[349518468,1737271832808,-1151.47444643,0.00011456,2]
[349518469,1737271832818,-500.0,0.00011473,2]
[349518470,1737271832827,-150.0,0.00011495,2]
[349518471,1737271832836,-150.0,0.00011495,2]
[349518472,1737271832845,-150.0,0.00011495,2]
[349518473,1737271832854,-150.0,0.00011495,2]
[349518474,1737271832863,-150.0,0.00011495,2]
[349518475,1737271832873,-150.0,0.00011495,2]
[349518476,1737271832883,-150.0,0.00011495,2]
[349518477,1737271832892,-150.0,0.00011495,2]
[349518478,1737271832902,-297.96,0.00011495,2]
[349518479,1737271832913,-297.96,0.00011495,2]
[349518480,1737271832924,-297.96,0.00011495,2]
[349518481,1737271832933,-297.96,0.00011495,2]
[349518482,1737271832942,-297.96,0.00011495,2]
[349518483,1737271832951,-297.96,0.00011495,2]
[349518484,1737271832961,-297.96,0.00011495,2]
[349518485,1737271832971,-297.96,0.00011495,2]
[349518486,1737271832980,-297.96,0.00011495,2]
[349518487,1737271832989,-297.96,0.00011495,2]
[349518488,1737271833000,-297.96,0.00011495,2]
[349518489,1737271833009,-703.248,0.00011499,2]
[349518490,1737271833018,-575175.30720915,0.000115,2]
[349518491,1737271833041,-73698.28867258,0.000115,2]
[349518492,1737271833057,-150.0,0.000115,2]
[349518493,1737271833077,-150.0,0.000115,2]
[349518494,1737271833097,-222.09717927,0.000115,2]
[349518495,1737271833112,-3000.0,0.000115,2]
[349518496,1737271833132,-2323.24948267,0.00011511,2]
[349518497,1737271833151,-1151.47444643,0.00011511,2]
[349518498,1737271833170,-2323.24948267,0.00011567,2]
[349518499,1737271833189,-1151.47444643,0.00011567,2]
[349518500,1737271833205,-297.96,0.000116,2]
[349518501,1737271833224,-297.96,0.000116,2]
[349518502,1737271833240,-297.96,0.000116,2]
[349518503,1737271833256,-297.96,0.000116,2]
[349518504,1737271833273,-297.96,0.000116,2]
[349518505,1737271833288,-150.0,0.000116,2]
[349518506,1737271833304,-150.0,0.000116,2]
[349518507,1737271833317,-150.0,0.000116,2]
[349518508,1737271833337,-150.0,0.000116,2]
[349518509,1737271833353,-150.0,0.000116,2]
[349518510,1737271833367,-150.0,0.000116,2]
[349518511,1737271833383,-2323.24948267,0.00011622,2]
[349518512,1737271833399,-1151.47444643,0.00011622,2]
[349518513,1737271833414,-2323.24948267,0.00011678,2]
[349518514,1737271833429,-1151.47444643,0.00011678,2]
[349518515,1737271833445,-150.8,0.00011699,2]
[349518516,1737271833460,-150.0,0.00011699,2]
[349518517,1737271833476,-150.0,0.00011699,2]
[349518518,1737271833491,-150.0,0.00011699,2]
[349518519,1737271833506,-297.96,0.000117,2]
[349518520,1737271833521,-297.96,0.000117,2]
[349518521,1737271833536,-297.96,0.000117,2]
[349518522,1737271833551,-297.96,0.000117,2]
[349518524,1737271833566,-297.96,0.000117,2]
[349518526,1737271833582,-200.0,0.00011729,2]
[349518528,1737271833602,-2323.24948267,0.00011733,2]
[349518531,1737271833618,-1151.47444643,0.00011733,2]
[349518533,1737271833635,-23372.0,0.00011742,2]
[349518536,1737271833653,-432.63041239,0.00011743,2]
[349518538,1737271833669,-26924.67136036,0.00011746,2]
[349518541,1737271833685,-432.63041239,0.00011751,2]
[349518544,1737271833703,-432.63041239,0.00011754,2]
[349518546,1737271833719,-298.9764879,0.0001176,2]
[349518549,1737271833736,-432.63041239,0.00011762,2]
[349518552,1737271833751,-26924.67136036,0.00011763,2]
[349518554,1737271833766,-26924.67136036,0.00011784,2]
[349518557,1737271833782,-26924.67136036,0.00011786,2]
[349518559,1737271833797,-2323.24948267,0.00011789,2]
[349518562,1737271833811,-1151.47444643,0.00011789,2]
[349518564,1737271833826,-200.0,0.0001179,2]
[349518567,1737271833848,-26924.67136036,0.00011791,2]
[349518569,1737271833863,-432.63041239,0.00011792,2]
[349518572,1737271833879,-200.0,0.00011797,2]
[349518575,1737271833895,-297.96,0.000118,2]
[349518577,1737271833910,-297.96,0.000118,2]
[349518580,1737271833926,-150.0,0.000118,2]
[349518583,1737271833942,-297.96,0.00011824,2]
[349518585,1737271833959,-297.96,0.00011824,2]
[349518588,1737271833973,-2323.24948267,0.00011844,2]
[349518590,1737271833989,-1151.47444643,0.00011844,2]
[349518593,1737271834004,-297.96,0.000119,2]
[349518595,1737271834020,-150.0,0.000119,2]
[349518609,1737271834036,-150.0,0.000119,2]
[349518616,1737271834206,-150.0,0.000119,2]
[349518618,1737271834226,-150.0,0.000119,2]
[349518620,1737271834237,-150.0,0.000119,2]
[349518622,1737271834246,-150.0,0.000119,2]
[349518624,1737271834256,-150.0,0.000119,2]
[349518626,1737271834266,-150.0,0.000119,2]
[349518628,1737271834276,-150.0,0.000119,2]
[349518630,1737271834286,-883.53213804,0.000119,2]
[349518632,1737271834295,-215.09248392,0.000119,2]
[349518634,1737271834305,-2323.24948267,0.000119,2]
[349518636,1737271834314,-1151.47444643,0.000119,2]
[349518638,1737271834324,-4027.8028473,0.000119,2]
[349518640,1737271834334,-7315.11365062,0.000119,2]
[349518642,1737271834346,-5621.0,0.00011973,2]
[349518644,1737271834356,-43968.14702731,0.0001198,2]
[349518646,1737271834365,-305.96,0.00011984,2]
[349518648,1737271834374,-179.43852401,0.0001199,2]
[349518650,1737271834383,-1479.1487372,0.00011992,2]
[349518652,1737271834392,-204.54163912,0.00011992,2]
[349518654,1737271834402,-729.8190513,0.00011992,2]
[349518656,1737271834411,-500.0,0.00011999,2]
[349518658,1737271834420,-500.0,0.00011999,2]
[349518660,1737271834429,-368.0212,0.00011999,2]
[349518662,1737271834438,-1239049.51513572,0.00012,2]
[349518697,1737271834873,-454.92529219,0.00011267,2]
[349518699,1737271834885,-483.46837078,0.00011267,2]
[349518783,1737271838006,-591.17431927,0.00011267,2]
[349518784,1737271838015,-500.0,0.000114,2]
[349518785,1737271838025,-572.8886151,0.00011992,2]
[349518786,1737271838034,-1319.52858792,0.00012,2]
[349518787,1737271838045,-138724.86738,0.00012,2]
[349518788,1737271838056,-302.516,0.00012,2]
[349518789,1737271838087,-2153.18843597,0.00012,2]
[349518790,1737271838099,-1103.16362885,0.00012,2]
[349518791,1737271838111,-852.76895199,0.00012,2]
[349518792,1737271838331,-500.0,0.00012,2]
[349518840,1737271840279,-145452.68065301,0.00012,2]
[349518841,1737271841323,-3467.67662001,0.00012,2]
[349518842,1737271841366,-3321.27249904,0.00012,2]
[349518843,1737271841398,-17925.78249904,0.00012,2]
[349518844,1737271841411,-530.69259837,0.00012,2]
[349518845,1737271841427,-660.5816761,0.00012,2]
[349518905,1737271843239,-538.16644726,0.000119,2]
[349518907,1737271843248,-499.43618798,0.00012,2]
[349518915,1737271843359,-5706.91075102,0.00012,2]
[349518916,1737271843407,-318.27089731,0.00012,2]
[349518928,1737271845982,-3746.45870763,0.00012,2]
[349518929,1737271845993,-3404.9,0.00012,2]
[349518930,1737271846235,-276.9182,0.00012,2]
[349518931,1737271846248,-419.48451,0.00012,2]
[349518932,1737271846259,-328.68581002,0.00012,2]
[349518933,1737271846271,-294.94333478,0.00012,2]
[349518934,1737271846291,-3358.3,0.00012,2]
[349518935,1737271846460,-155000.000006,0.00012,2]
[349518936,1737271846472,-650.8,0.00012,2]
[349518937,1737271846515,-59747.51062158,0.00012,2]
[349518938,1737271846547,-9359.46219701,0.00012,2]
[349518943,1737271932364,-300.0,0.00011399,2]
[349518944,1737271932385,-4456.1306,0.000114,2]
[349518945,1737271932408,-843.8694,0.000114,2]
[349518946,1737272083206,-486.63,9.176e-05,2]
[349518947,1737272206371,-1033.96,0.00011015,2]
[349518948,1737272206394,-250.0,0.00011142,2]
[349518949,1737272206417,-250.0,0.00011167,2]
[349518950,1737272206438,-150.0,0.00011399,2]
[349518951,1737272206459,-582.9263,0.000114,2]
[349518952,1737272206480,-12833.1137,0.000114,2]
[349518953,1737272332264,-1511.11,0.00010536,2]
[349518954,1737272353914,-488.89,0.00010536,2]
[349518955,1737272353937,-1000.0,0.00010541,2]
[349518956,1737272353959,-511.11,0.00010546,2]
[349518958,1737272504628,2000.0,0.0002,30]
[349518959,1737272595201,2000.0,0.0002,30]
[349518960,1737272772601,-5061.74172,0.00022272,30]
[349518961,1737272772653,-424.63286632,0.00022886,60]
[349518962,1737272772680,-202.3245628,0.0002301,120]
[349518963,1737272772722,-170.13034837,0.00023207,30]
[349518964,1737272772747,-500.0,0.00023211,30]
[349518965,1737272772775,-645.11815317,0.00023211,30]
[349518966,1737272772800,-500.0,0.00023211,30]
[349518967,1737272772825,-1100.0,0.00023211,30]
[349518968,1737272772850,-1100.0,0.00023211,30]
[349518969,1737272772875,-1100.0,0.00023211,30]
[349518970,1737272772903,-1100.0,0.00023211,30]
[349518971,1737272772929,-700.0,0.00023211,30]
[349518972,1737272772954,-1100.0,0.00023211,30]
[349518973,1737272772980,-700.0,0.00023211,30]
[349518974,1737272773005,-500.0,0.00023211,30]
[349518975,1737272773188,-700.0,0.00023211,30]
[349518976,1737272773214,-977.6588786,0.00023211,30]
[349518977,1737272773240,-1100.0,0.00023211,30]
[349518978,1737272773265,-700.0,0.00023211,30]
[349518979,1737272773290,-1100.0,0.00023211,30]
[349518980,1737272773315,-700.0,0.00023211,30]
[349518981,1737272773339,-1100.0,0.00023211,30]
[349518982,1737272773364,-700.0,0.00023211,30]
[349518983,1737272773391,-1100.0,0.00023211,30]
[349518984,1737272773416,-1100.0,0.00023211,30]
[349518985,1737272773441,-1100.0,0.00023211,30]
[349518986,1737272773467,-700.0,0.00023211,30]
[349518987,1737272773492,-1100.0,0.00023211,30]
[349518988,1737272773516,-700.0,0.00023211,30]
[349518989,1737272773542,-1100.0,0.00023211,30]
[349518990,1737272773566,-500.0,0.00023211,30]
[349518991,1737272773591,-700.0,0.00023211,30]
[349518992,1737272773616,-1317.5509605,0.00023211,30]
[349518993,1737272773640,-500.0,0.00023211,30]
[349518994,1737272773665,-700.0,0.00023211,30]
[349518995,1737272773689,-968.40446952,0.00023211,30]
[349518996,1737272773716,-700.0,0.00023211,30]
[349518997,1737272773741,-700.0,0.00023211,30]
[349518998,1737272773766,-756.21849389,0.00023211,30]
[349518999,1737272773791,-500.0,0.00023211,30]
[349519000,1737272773816,-500.0,0.00023211,30]
[349519001,1737272773841,-500.0,0.00023211,30]
[349519002,1737272773865,-500.0,0.00023211,30]
[349519003,1737272773890,-500.0,0.00023211,30]
[349519004,1737272773919,-642.81614092,0.00023211,30]
[349519005,1737272773945,-550.99041522,0.00023211,30]
[349519006,1737272773970,-500.0,0.00023211,30]
[349519007,1737272773996,-500.0,0.00023211,30]
[349519008,1737272774021,-500.0,0.00023211,30]
[349519009,1737272774045,-500.0,0.00023211,30]
[349519010,1737272774069,-500.0,0.00023211,30]
[349519011,1737272774094,-500.0,0.00023211,30]
[349519012,1737272774119,-945.05087337,0.00023211,30]
[349519013,1737272774147,-500.0,0.00023211,30]
[349519014,1737272774174,-717.25473619,0.00023211,30]
[349519015,1737272774198,-500.0,0.00023211,30]
[349519016,1737272774225,-500.0,0.00023211,30]
[349519017,1737272774251,-500.0,0.00023211,30]
[349519018,1737272774276,-500.0,0.00023211,30]
[349519019,1737272774302,-500.0,0.00023211,30]
[349519020,1737272774328,-500.0,0.00023211,30]
[349519021,1737272774355,-500.0,0.00023211,30]
[349519022,1737272774381,-500.0,0.00023211,30]
[349519023,1737272774535,-500.0,0.00023211,30]
[349519024,1737272774562,-500.0,0.00023211,30]
[349519025,1737272774587,-500.0,0.00023211,30]
[349519026,1737272774611,-952.66007467,0.00023211,30]
[349519027,1737272774637,-500.0,0.00023211,30]
[349519028,1737272774661,-500.0,0.00023211,30]
[349519029,1737272774689,-500.0,0.00023211,30]
[349519030,1737272774717,-500.0,0.00023211,30]
[349519031,1737272774742,-500.0,0.00023211,30]
[349519032,1737272774768,-500.0,0.00023211,30]
[349519033,1737272774792,-835.03905685,0.00023211,30]
[349519034,1737272774852,-19999.99,0.00024,30]
[349519035,1737272774878,-800.0,0.00024,40]
[349519036,1737272774906,-150.0,0.00024075,120]
[349519037,1737272774942,-150.0,0.0002423,120]
[349519038,1737272774967,-150.0,0.00024361,120]
[349519039,1737272775002,-150.0,0.00024384,120]
[349519040,1737272775027,-159.13,0.0002465,120]
[349519041,1737272775066,-199.0,0.0002467,30]
[349519042,1737272775091,-199.0,0.0002467,30]
[349519043,1737272775116,-199.0,0.0002468,30]
[349519044,1737272775143,-199.0,0.0002468,30]
[349519045,1737272775170,-199.0,0.0002468,30]
[349519046,1737272775197,-201.0,0.0002468,30]
[349519047,1737272775222,-199.0,0.0002469,30]
[349519048,1737272775248,-199.0,0.0002469,30]
[349519049,1737272775274,-199.0,0.0002469,30]
[349519050,1737272775300,-199.0,0.0002469,30]
[349519051,1737272775330,-1040.65,0.000249,31]
[349519052,1737272775361,-1040.65,0.000249,31]
[349519053,1737272775392,-1040.65,0.000249,31]
[349519054,1737272775423,-1040.65,0.000249,31]
[349519055,1737272775453,-1040.65,0.000249,31]
[349519056,1737272775483,-1040.65,0.000249,31]
[349519057,1737272775514,-1040.65,0.000249,31]
[349519058,1737272775543,-1040.65,0.000249,31]
[349519059,1737272775573,-1040.65,0.000249,31]
[349519060,1737272775602,-1040.65,0.000249,31]
[349519061,1737272775631,-1040.65,0.000249,31]
[349519062,1737272775662,-1040.65,0.000249,31]
[349519063,1737272775706,-1040.65,0.000249,31]
[349519064,1737272775743,-1040.65,0.000249,31]
[349519065,1737272775777,-1040.65,0.000249,31]
[349519066,1737272775810,-1040.65,0.000249,31]
[349519067,1737272775849,-1083.39956848,0.00024997,31]
[349519068,1737272775878,-5175.64,0.00025,30]
[349519069,1737272775908,-429.49057114,0.00025,120]
[349519070,1737272775936,-238.63262916,0.00025,120]
[349519071,1737272775964,-2388.74868928,0.00025,30]
[349519072,1737272776152,-2002.35067669,0.00025,30]
[349519073,1737272776189,-250.0,0.00025,120]
[349519074,1737272776214,-1441.6484414,0.00025,120]
[349519075,1737272776240,-500.0,0.00025,30]
[349519076,1737272776280,-646.99986275,0.00025,30]
[349519077,1737272776310,-1100.0,0.00025,30]
[349519078,1737272776334,-500.0,0.00025,30]
[349519079,1737272776360,-1100.0,0.00025,30]
[349519080,1737272776390,-700.0,0.00025,30]
[349519081,1737272776417,-1100.0,0.00025,30]
[349519082,1737272776444,-700.0,0.00025,30]
[349519083,1737272776469,-500.0,0.00025,30]
[349519084,1737272776496,-1100.0,0.00025,30]
[349519085,1737272776522,-700.0,0.00025,30]
[349519086,1737272776547,-500.0,0.00025,30]
[349519087,1737272776573,-1100.0,0.00025,30]
[349519088,1737272776598,-700.0,0.00025,30]
[349519089,1737272776625,-1100.0,0.00025,30]
[349519090,1737272776653,-1100.0,0.00025,30]
[349519091,1737272776678,-1100.0,0.00025,30]
[349519092,1737272776704,-1100.0,0.00025,30]
[349519093,1737272776728,-700.0,0.00025,30]
[349519094,1737272776753,-1100.0,0.00025,30]
[349519095,1737272776777,-700.0,0.00025,30]
[349519096,1737272776801,-1100.0,0.00025,30]
[349519097,1737272776826,-700.0,0.00025,30]
[349519098,1737272776851,-1100.0,0.00025,30]
[349519099,1737272776874,-700.0,0.00025,30]
[349519100,1737272776902,-1100.0,0.00025,30]
[349519101,1737272776929,-700.0,0.00025,30]
[349519102,1737272776955,-1100.0,0.00025,30]
[349519103,1737272776980,-700.0,0.00025,30]
[349519104,1737272777006,-500.93313621,0.00025,30]
[349519105,1737272777032,-700.0,0.00025,30]
[349519106,1737272777058,-700.0,0.00025,30]
[349519107,1737272777083,-700.0,0.00025,30]
[349519108,1737272777109,-500.0,0.00025,30]
[349519109,1737272777136,-500.0,0.00025,30]
[349519110,1737272777163,-581.05948826,0.00025,30]
[349519111,1737272777188,-500.0,0.00025,30]
[349519112,1737272777215,-500.0,0.00025,30]
[349519113,1737272777240,-500.0,0.00025,30]
[349519114,1737272777266,-500.0,0.00025,30]
[349519115,1737272777291,-756.67990665,0.00025,30]
[349519116,1737272777316,-500.0,0.00025,30]
[349519117,1737272777342,-500.0,0.00025,30]
[349519118,1737272777367,-500.0,0.00025,30]
[349519119,1737272777393,-500.0,0.00025,30]
[349519120,1737272777418,-500.0,0.00025,30]
[349519121,1737272777442,-500.0,0.00025,30]
[349519122,1737272777467,-500.0,0.00025,30]
[349519123,1737272777491,-500.0,0.00025,30]
[349519124,1737272777516,-500.0,0.00025,30]
[349519125,1737272777541,-500.0,0.00025,30]
[349519126,1737272777566,-538.95803517,0.00025,30]
[349519127,1737272777593,-500.0,0.00025,30]
[349519128,1737272777722,-500.0,0.00025,30]
[349519129,1737272777747,-500.0,0.00025,30]
[349519130,1737272777772,-500.0,0.00025,30]
[349519131,1737272777796,-500.0,0.00025,30]
[349519132,1737272777821,-500.0,0.00025,30]
[349519133,1737272777847,-500.0,0.00025,30]
[349519134,1737272777871,-500.0,0.00025,30]
[349519135,1737272777898,-500.0,0.00025,30]
[349519136,1737272777927,-500.0,0.00025,30]
[349519137,1737272777952,-500.0,0.00025,30]
[349519138,1737272777976,-500.0,0.00025,30]
[349519139,1737272778002,-500.0,0.00025,30]
[349519140,1737272778030,-500.0,0.00025,30]
[349519141,1737272778055,-500.0,0.00025,30]
[349519142,1737272778080,-500.0,0.00025,30]
[349519143,1737272778106,-500.0,0.00025,30]
[349519144,1737272778133,-500.0,0.00025,30]